bitfinex/quotes_BTCUSD_20250822
["timestamp","ask_amount","ask_price","bid_price","bid_amount"]
[1755864993395,0.20079265,112270.0,112260.0,0.18476]
[1755864993814,0.02265068,112270.0,112260.0,0.18476]
[1755864994027,0.20635541,112270.0,112260.0,0.18476]
[1755864994230,0.20079265,112270.0,112260.0,0.18476]
[1755864995352,0.55160235,112270.0,112260.0,0.18472]
[1755864995550,0.55782743,112270.0,112260.0,0.18472]
[1755864995963,0.55782743,112270.0,112260.0,0.02504]
[1755864996189,0.20079325,112270.0,112260.0,0.02504]
[1755864996396,0.55782743,112270.0,112260.0,0.02504]
[1755864997426,0.55160235,112270.0,112260.0,0.02504]
[1755864997625,0.55782929,112270.0,112260.0,0.02504]
[1755864998692,0.55160235,112270.0,112260.0,0.02504]
[1755864999908,0.55160235,112270.0,112260.0,4e-05]
[1755865000517,0.55783159,112270.0,112260.0,4e-05]
[1755865001678,0.5578327,112270.0,112260.0,4e-05]
[1755865002225,0.78816725,112270.0,112260.0,4e-05]
[1755865002419,0.78816803,112270.0,112260.0,4e-05]
[1755865003029,0.62856803,112270.0,112260.0,4e-05]
[1755865003252,0.78816803,112270.0,112260.0,4e-05]
[1755865004660,0.62856803,112270.0,112260.0,4e-05]
[1755865004866,0.78812803,112270.0,112260.0,4e-05]
[1755865005179,0.62856803,112270.0,112260.0,4e-05]
[1755865005388,0.78812803,112270.0,112260.0,4e-05]
[1755865005787,0.62856803,112270.0,112260.0,4e-05]
[1755865006658,0.78812803,112270.0,112260.0,4e-05]
[1755865007027,0.62856803,112270.0,112260.0,4e-05]
[1755865007231,0.78812803,112270.0,112260.0,4e-05]
[1755865007842,0.7881358,112270.0,112260.0,4e-05]
[1755865008803,0.80558482,112270.0,112260.0,4e-05]
[1755865009217,0.90303134,112270.0,112260.0,4e-05]
[1755865010053,0.82219931,112270.0,112260.0,4e-05]
[1755865010279,0.79164367,112270.0,112260.0,4e-05]
[1755865010471,0.63208367,112270.0,112260.0,4e-05]
[1755865010705,0.79160367,112270.0,112260.0,4e-05]
[1755865011133,0.27505029,112270.0,112260.0,4e-05]
[1755865011261,0.79160447,112270.0,112260.0,4e-05]
[1755865011487,0.79160462,112270.0,112260.0,4e-05]
[1755865012490,0.8055466,112270.0,112260.0,4e-05]
[1755865012920,0.8055066,112270.0,112260.0,4e-05]
[1755865014639,0.79926673,112270.0,112260.0,4e-05]
[1755865015635,0.63978673,112270.0,112260.0,4e-05]
[1755865015973,0.78528475,112270.0,112260.0,4e-05]
[1755865016473,0.77188675,112270.0,112260.0,4e-05]
[1755865017102,1.11552293,112270.0,112260.0,4e-05]
[1755865017646,1.12176589,112270.0,112260.0,4e-05]
[1755865019288,0.97626785,112270.0,112260.0,4e-05]
[1755865019492,0.79207167,112270.0,112260.0,4e-05]
[1755865020282,0.79207153,112270.0,112260.0,4e-05]
[1755865020571,0.78582871,112270.0,112260.0,4e-05]
[1755865020777,0.62638871,112270.0,112260.0,4e-05]
[1755865020948,0.78578871,112270.0,112260.0,4e-05]
[1755865021797,1.12942489,112270.0,112260.0,4e-05]
[1755865022356,0.97002489,112270.0,112260.0,4e-05]
[1755865022768,1.12938489,112270.0,112260.0,4e-05]
[1755865023888,0.78574871,112270.0,112260.0,4e-05]
[1755865025277,0.76829969,112270.0,112260.0,4e-05]
[1755865025457,0.53820516,112270.0,112260.0,4e-05]
[1755865027559,0.53820516,112270.0,112260.0,0.02504]
[1755865027766,0.5242632,112270.0,112260.0,0.02504]
[1755865027963,30.5242632,112270.0,112260.0,0.02504]
[1755865029741,30.5242632,112270.0,112260.0,4e-05]
[1755865029950,30.6835432,112270.0,112260.0,4e-05]
[1755865031393,30.69748465,112270.0,112260.0,4e-05]
[1755865031799,30.76821918,112270.0,112260.0,4e-05]
[1755865032610,30.60893918,112270.0,112260.0,4e-05]
[1755865032810,30.76821918,112270.0,112260.0,4e-05]
[1755865033643,30.76817918,112270.0,112260.0,4e-05]
[1755865034026,30.7856282,112270.0,112260.0,4e-05]
[1755865036076,30.77168675,112270.0,112260.0,4e-05]
[1755865036491,30.77793118,112270.0,112260.0,4e-05]
[1755865036902,31.12156736,112270.0,112260.0,4e-05]
[1755865037109,31.152123,112270.0,112260.0,4e-05]
[1755865037274,30.80848682,112270.0,112260.0,4e-05]
[1755865037476,30.77793118,112270.0,112260.0,4e-05]
[1755865037687,30.77793062,112270.0,112260.0,4e-05]
[1755865038918,30.77789062,112270.0,112260.0,4e-05]
[1755865039139,30.79183248,112270.0,112260.0,4e-05]
[1755865039340,30.79179248,112270.0,112260.0,4e-05]
[1755865040015,30.63263248,112270.0,112260.0,4e-05]
[1755865040171,30.79179248,112270.0,112260.0,4e-05]
[1755865041849,30.63263248,112270.0,112260.0,4e-05]
[1755865042062,30.79179248,112270.0,112260.0,4e-05]
[1755865042281,30.63263248,112270.0,112260.0,4e-05]
[1755865042486,30.79175248,112270.0,112260.0,4e-05]
[1755865043099,30.82189456,112270.0,112260.0,4e-05]
[1755865045283,30.82185456,112270.0,112260.0,4e-05]
[1755865045494,0.17815784,112260.0,112250.0,0.09614945]
[1755865045694,0.7520053,112260.0,112250.0,0.09614945]
[1755865046633,0.7520053,112260.0,112250.0,0.09814945]
[1755865046833,0.5929253,112260.0,112250.0,0.09814945]
[1755865048377,0.24928912,112260.0,112250.0,0.09814945]
[1755865048605,0.5929253,112260.0,112250.0,0.09814945]
[1755865049303,0.60686743,112260.0,112250.0,0.09814945]
[1755865050587,0.26323125,112260.0,112250.0,0.09814945]
[1755865051044,0.60686743,112260.0,112250.0,0.09814945]
[1755865056130,0.76582743,112260.0,112250.0,0.09814945]
[1755865056714,0.95050361,112260.0,112250.0,0.09814945]
[1755865057099,0.94814297,112260.0,112250.0,0.09814945]
[1755865057565,0.93420084,112260.0,112250.0,0.09814945]
[1755865057894,0.59056466,112260.0,112250.0,0.09814945]
[1755865058519,0.24692848,112260.0,112250.0,0.09814945]
[1755865058893,0.59056466,112260.0,112250.0,0.09814945]
[1755865060424,1.09312084,112260.0,112250.0,0.09814945]
[1755865060897,1.10706319,112260.0,112250.0,0.09814945]
[1755865062490,0.94814319,112260.0,112250.0,0.09814945]
[1755865065366,0.26087083,112260.0,112250.0,0.09814945]
[1755865065579,0.94814319,112260.0,112250.0,0.09814945]
[1755865066708,1.02687293,112260.0,112250.0,0.09814945]
[1755865067041,1.13749883,112260.0,112250.0,0.09814945]
[1755865067275,1.13749883,112260.0,112250.0,0.09714945]
[1755865067668,1.13849883,112260.0,112250.0,0.09614945]
[1755865068516,1.16219087,112260.0,112250.0,0.09614945]
[1755865069094,0.47491851,112260.0,112250.0,0.09614945]
[1755865069602,1.16219087,112260.0,112250.0,0.09614945]
[1755865069808,1.50218981,112260.0,112250.0,0.09614945]
[1755865071120,0.78428181,112260.0,112250.0,0.09614945]
[1755865071324,1.47159417,112260.0,112250.0,0.09614945]
[1755865071466,1.50443475,112260.0,112250.0,0.09614945]
[1755865071668,1.50713093,112260.0,112250.0,0.09614945]
[1755865071889,1.34232635,112260.0,112250.0,0.09614945]
[1755865072090,1.50104635,112260.0,112250.0,0.09614945]
[1755865072297,0.65505399,112260.0,112250.0,0.09614945]
[1755865072497,1.34232635,112260.0,112250.0,0.09614945]
[1755865073262,1.32568782,112260.0,112250.0,0.09614945]
[1755865073465,1.51786738,112260.0,112250.0,0.09614945]
[1755865073690,0.83059502,112260.0,112250.0,0.09614945]
[1755865073879,0.67187502,112260.0,112250.0,0.09614945]
[1755865074006,1.51786738,112260.0,112250.0,0.09614945]
[1755865074404,1.35914738,112260.0,112250.0,0.09614945]
[1755865074609,1.51786161,112260.0,112250.0,0.09614945]
[1755865074820,1.53180482,112260.0,112250.0,0.09614945]
[1755865075661,1.61867447,112260.0,112250.0,0.09614945]
[1755865075871,1.53180482,112260.0,112250.0,0.09614945]
[1755865078043,1.51786161,112260.0,112250.0,0.09614945]
[1755865080652,1.51162542,112260.0,112250.0,0.09614945]
[1755865080876,1.51786196,112260.0,112250.0,0.09614945]
[1755865081097,0.62096102,112260.0,112250.0,0.09614945]
[1755865081284,1.10418773,112260.0,112250.0,0.09614945]
[1755865081481,1.4540615,112260.0,112250.0,0.09614945]
[1755865081806,1.48752106,112260.0,112250.0,0.09614945]
[1755865082952,1.48752236,112260.0,112250.0,0.09614945]
[1755865084706,1.48510107,112260.0,112250.0,0.09614945]
[1755865084926,0.79782871,112260.0,112250.0,0.09614945]
[1755865085132,1.48510107,112260.0,112250.0,0.09614945]
[1755865088975,1.32642107,112260.0,112250.0,0.09614945]
[1755865089177,1.45164151,112260.0,112250.0,0.09614945]
[1755865089340,1.44540262,112260.0,112250.0,0.09614945]
[1755865089971,1.22037327,112260.0,112250.0,0.09614945]
[1755865090168,0.53673709,112260.0,112250.0,0.12114945]
[1755865090390,0.52279402,112260.0,112250.0,0.12114945]
[1755865091347,0.17915784,112260.0,112250.0,0.12114945]
[1755865091550,0.52279402,112260.0,112250.0,0.12114945]
[1755865092347,1.05852976,112260.0,112250.0,0.09614945]
[1755865092772,0.89988976,112260.0,112250.0,0.12114945]
[1755865092971,0.8664302,112260.0,112250.0,0.12114945]
[1755865093170,1.0250702,112260.0,112250.0,0.12114945]
[1755865093986,1.03901247,112260.0,112250.0,0.12114945]
[1755865096402,1.03909839,112260.0,112250.0,0.12114945]
[1755865096605,1.05861568,112260.0,112250.0,0.12114945]
[1755865097260,1.02515612,112260.0,112250.0,0.12114945]
[1755865099004,1.12492503,112260.0,112250.0,0.09614945]
[1755865099204,1.09146547,112260.0,112250.0,0.09614945]
[1755865099391,1.11825947,112260.0,112250.0,0.09614945]
[1755865099962,1.13220187,112260.0,112250.0,0.09614945]
[1755865100375,0.44484359,112260.0,112250.0,0.09614945]
[1755865100508,1.13220187,112260.0,112250.0,0.09614945]
[1755865100704,0.44484359,112260.0,112250.0,0.09614945]
[1755865100931,1.13220187,112260.0,112250.0,0.09614945]
[1755865101128,0.97360187,112260.0,112250.0,0.09614945]
[1755865101328,1.00706143,112260.0,112250.0,0.09614945]
[1755865101930,0.97360187,112260.0,112250.0,0.09614945]
[1755865104691,0.28624359,112260.0,112250.0,0.09614945]
[1755865104889,0.97360187,112260.0,112250.0,0.09614945]
[1755865105661,0.31970315,112260.0,112250.0,0.09614945]
[1755865105831,0.97360187,112260.0,112250.0,0.09614945]
[1755865106193,0.31970315,112260.0,112250.0,0.09614945]
[1755865106604,1.00706143,112260.0,112250.0,0.09614945]
[1755865107223,0.31970315,112260.0,112250.0,0.09614945]
[1755865107425,1.35074057,112260.0,112250.0,0.09614945]
[1755865107635,1.00706143,112260.0,112250.0,0.09614945]
[1755865107837,1.73852885,112260.0,112250.0,0.09614945]
[1755865108043,1.69424719,112260.0,112250.0,0.09614945]
[1755865108246,1.70048878,112260.0,112250.0,0.09614945]
[1755865108477,1.85904878,112260.0,112250.0,0.09614945]
[1755865109097,0.82801136,112260.0,112250.0,0.09614945]
[1755865109301,1.85904878,112260.0,112250.0,0.09614945]
[1755865109507,0.85835062,112260.0,112250.0,0.09614945]
[1755865109721,1.70048878,112260.0,112250.0,0.09614945]
[1755865110148,1.85368719,112260.0,112250.0,0.09614945]
[1755865110353,0.79543235,112260.0,112250.0,0.09614945]
[1755865110565,1.82646977,112260.0,112250.0,0.09614945]
[1755865111169,0.64993545,112260.0,112250.0,0.09614945]
[1755865111478,1.33729373,112260.0,112250.0,0.09614945]
[1755865111887,0.64993545,112260.0,112250.0,0.09614945]
[1755865112088,0.68339501,112260.0,112250.0,0.09614945]
[1755865112312,1.71443243,112260.0,112250.0,0.09614945]
[1755865112516,0.68339501,112260.0,112250.0,0.09614945]
[1755865112935,1.33729373,112260.0,112250.0,0.09614945]
[1755865113145,0.91349536,112260.0,112250.0,0.12114945]
[1755865113365,0.90725322,112260.0,112250.0,0.12114945]
[1755865113555,0.21989494,112260.0,112250.0,0.12114945]
[1755865113774,0.90725322,112260.0,112250.0,0.12114945]
[1755865113971,0.90725322,112260.0,112250.0,0.28114945]
[1755865114169,0.94071278,112260.0,112250.0,0.28114945]
[1755865114385,0.21989494,112260.0,112250.0,0.28114945]
[1755865114591,0.90725322,112260.0,112250.0,0.28114945]
[1755865115363,0.21989494,112260.0,112250.0,0.28114945]
[1755865116232,0.20595184,112260.0,112250.0,0.28114945]
[1755865116438,0.89331012,112260.0,112250.0,0.28114945]
[1755865116623,0.20595184,112260.0,112250.0,0.28114945]
[1755865116877,0.17915784,112260.0,112250.0,0.8030023]
[1755865117086,0.001,112260.0,112250.0,0.930526]
[1755865117475,0.001,112260.0,112250.0,0.61363286]
[1755865117710,0.001,112260.0,112250.0,0.48011317]
[1755865117909,30.52230776,112270.0,112250.0,0.98383231]
[1755865118112,0.17915784,112260.0,112250.0,0.61767286]
[1755865118231,0.001,112260.0,112250.0,0.961352]
[1755865118444,0.001,112260.0,112250.0,0.62067286]
[1755865118818,50.79632319,112270.0,112250.0,0.61667286]
[1755865118942,50.79632319,112270.0,112250.0,0.61367286]
[1755865119153,50.79732319,112270.0,112260.0,0.16012]
[1755865119378,50.45379062,112270.0,112260.0,0.16012]
[1755865119583,50.45379062,112270.0,112260.0,0.40679784]
[1755865119785,50.79732319,112270.0,112260.0,0.40679784]
[1755865120121,50.79732319,112270.0,112260.0,0.06852]
[1755865120564,50.79632319,112270.0,112260.0,0.22856]
[1755865121148,50.45279062,112270.0,112260.0,0.22856]
[1755865121369,50.45279062,112270.0,112260.0,0.23356]
[1755865121370,50.79732319,112270.0,112260.0,0.23356]
[1755865121576,50.83078275,112270.0,112260.0,0.16492]
[1755865121772,50.83078275,112270.0,112260.0,0.005]
[1755865121978,51.17431532,112270.0,112260.0,0.005]
[1755865122179,51.25771694,112270.0,112260.0,0.005]
[1755865122381,50.5706518,112270.0,112260.0,0.005]
[1755865122591,51.06743681,112270.0,112260.0,0.005]
[1755865122818,50.90751681,112270.0,112260.0,0.005]
[1755865123028,50.89006779,112270.0,112260.0,0.003]
[1755865123234,50.82411519,112270.0,112260.0,0.028]
[1755865123449,50.45279062,112270.0,112260.0,0.025]
[1755865123648,50.79632319,112270.0,112260.0,0.025]
[1755865123857,50.79632319,112270.0,112260.0,0.20315784]
[1755865123858,50.45379062,112270.0,112260.0,0.20315784]
[1755865124066,50.45379062,112270.0,112260.0,0.025]
[1755865124295,50.45379062,112270.0,112260.0,0.20415784]
[1755865124734,50.45379062,112270.0,112260.0,0.026]
[1755865124945,0.17815784,112260.0,112250.0,0.25735668]
[1755865125154,0.52169041,112260.0,112250.0,0.37653645]
[1755865125358,0.52169041,112260.0,112250.0,0.34974945]
[1755865125800,0.52169041,112260.0,112250.0,0.18966945]
[1755865125801,0.53563185,112260.0,112250.0,0.18966945]
[1755865125957,0.52169041,112260.0,112250.0,0.34974945]
[1755865126280,0.52169041,112260.0,112250.0,0.35174945]
[1755865126478,0.17815784,112260.0,112250.0,0.35174945]
[1755865126682,0.52169041,112260.0,112250.0,0.35174945]
[1755865126820,0.17815784,112260.0,112250.0,0.35174945]
[1755865127782,0.17915784,112260.0,112250.0,0.35374945]
[1755865128001,0.52269041,112260.0,112250.0,0.35546945]
[1755865128208,0.55614997,112260.0,112250.0,0.19566945]
[1755865128413,0.52269041,112260.0,112250.0,0.35550945]
[1755865129141,0.2126174,112260.0,112250.0,0.35550945]
[1755865129349,0.22655901,112260.0,112250.0,0.19566945]
[1755865129555,0.57009158,112260.0,112250.0,0.12714945]
[1755865129700,0.91362415,112260.0,112250.0,0.28694945]
[1755865129909,0.19309945,112260.0,112250.0,0.12714945]
[1755865130113,0.53663202,112260.0,112250.0,0.28694945]
[1755865130892,0.53663202,112260.0,112250.0,0.12714945]
[1755865131108,0.53663202,112260.0,112250.0,0.28690945]
[1755865131972,0.19309945,112260.0,112250.0,0.28690945]
[1755865132175,0.53663202,112260.0,112250.0,0.28690945]
[1755865134280,0.53663202,112260.0,112250.0,0.28674945]
[1755865134507,0.53663202,112260.0,112250.0,0.10214945]
[1755865134508,0.9799735,112260.0,112250.0,0.10214945]
[1755865134831,1.0067665,112260.0,112250.0,0.26170945]
[1755865135348,1.0067665,112260.0,112250.0,0.25970945]
[1755865135505,1.0057665,112260.0,112250.0,0.25570945]
[1755865135676,1.0067665,112260.0,112250.0,0.25670945]
[1755865137569,1.02421552,112260.0,112250.0,0.09714945]
[1755865137716,1.02421552,112260.0,112250.0,0.25658945]
[1755865137941,1.01027391,112260.0,112250.0,0.25658945]
[1755865138951,1.01027391,112260.0,112250.0,0.25634945]
[1755865139562,0.32320877,112260.0,112250.0,0.25634945]
[1755865139756,0.97681435,112260.0,112250.0,0.25634945]
[1755865141041,1.35027391,112260.0,112250.0,0.25622945]
[1755865141202,1.36421696,112260.0,112250.0,0.25622945]
[1755865142397,1.36444696,112260.0,112250.0,0.25622945]
[1755865142747,1.52352696,112260.0,112250.0,0.09714945]
[1755865142886,1.36444696,112260.0,112250.0,0.09714945]
[1755865143292,1.52336696,112260.0,112250.0,0.09714945]
[1755865143504,1.61023661,112260.0,112250.0,0.09714945]
[1755865144714,1.41785705,112260.0,112250.0,0.09714945]
[1755865145020,1.57661705,112260.0,112250.0,0.09714945]
[1755865145153,1.4897474,112260.0,112250.0,0.09714945]
[1755865145356,1.3309874,112260.0,112250.0,0.09714945]
[1755865145594,1.4897474,112260.0,112250.0,0.09714945]
[1755865145799,1.3309874,112260.0,112250.0,0.25582945]
[1755865147534,0.64392226,112260.0,112250.0,0.25582945]
[1755865147759,1.3309874,112260.0,112250.0,0.25582945]
[1755865147977,1.4896674,112260.0,112250.0,0.09714945]
[1755865148178,1.3309874,112260.0,112250.0,0.09714945]
[1755865148383,1.52954475,112260.0,112250.0,0.09714945]
[1755865148584,1.3309874,112260.0,112250.0,0.09714945]
[1755865148721,1.4896674,112260.0,112250.0,0.09714945]
[1755865149128,1.3309874,112260.0,112250.0,0.09714945]
[1755865150763,0.62647324,112260.0,112250.0,0.09714945]
[1755865150960,0.95606276,112260.0,112250.0,0.09714945]
[1755865151177,0.61253019,112260.0,112250.0,0.25582945]
[1755865151553,0.95606276,112260.0,112250.0,0.25582945]
[1755865152543,0.61606276,112260.0,112250.0,0.25582945]
[1755865152751,0.27253019,112260.0,112250.0,0.25582945]
[1755865152963,0.61606276,112260.0,112250.0,0.25582945]
[1755865153392,0.54971341,112260.0,112250.0,0.28082945]
[1755865153598,0.54971341,112260.0,112250.0,0.12214945]
[1755865153599,0.17938784,112260.0,112250.0,0.12214945]
[1755865153799,0.52292041,112260.0,112250.0,0.28082945]
[1755865154198,0.53686263,112260.0,112250.0,0.28082945]
[1755865154455,0.19333006,112260.0,112250.0,0.28082945]
[1755865154914,0.53686263,112260.0,112250.0,0.28082945]
[1755865156433,0.53686263,112260.0,112250.0,0.12214945]
[1755865156632,0.53686263,112260.0,112250.0,0.28082945]
[1755865157467,0.52292041,112260.0,112250.0,0.28082945]
[1755865158514,0.17938784,112260.0,112250.0,0.28082945]
[1755865158663,0.52292041,112260.0,112250.0,0.28082945]
[1755865159540,0.52292041,112260.0,112250.0,0.25582945]
[1755865159778,0.55637997,112260.0,112250.0,0.25582945]
[1755865160158,0.55637997,112260.0,112250.0,0.28082945]
[1755865160306,0.86645298,112260.0,112250.0,0.25582945]
[1755865160658,0.88039532,112260.0,112250.0,0.25582945]
[1755865160984,0.88039532,112260.0,112250.0,0.28082945]
[1755865162407,0.53686275,112260.0,112250.0,0.28082945]
[1755865163398,0.19333018,112260.0,112250.0,0.28082945]
[1755865163602,0.53686275,112260.0,112250.0,0.28082945]
[1755865164934,0.53686275,112260.0,112250.0,0.28078945]
[1755865165678,0.19333018,112260.0,112250.0,0.28078945]
[1755865165875,0.53686275,112260.0,112250.0,0.28078945]
[1755865167601,0.19333018,112260.0,112250.0,0.28078945]
[1755865167805,0.53686275,112260.0,112250.0,0.28078945]
[1755865168022,0.19333018,112260.0,112250.0,0.28078945]
[1755865168968,0.53686275,112260.0,112250.0,0.28078945]
[1755865169589,0.32414072,112260.0,112250.0,0.28078945]
[1755865169795,0.50229856,112260.0,112250.0,0.28078945]
[1755865170246,20.45278902,112270.0,112260.0,0.025]
[1755865170626,20.45278902,112270.0,112260.0,0.36175784]
[1755865170835,20.45278902,112270.0,112260.0,0.1836]
[1755865171202,20.45278902,112270.0,112260.0,0.025]
[1755865171505,20.45278902,112270.0,112260.0,0.1836]
[1755865171907,20.26924912,112270.0,112260.0,0.1836]
[1755865172451,20.27024912,112270.0,112260.0,0.1896]
[1755865173097,20.27024912,112270.0,112260.0,0.36775784]
[1755865173310,20.27024912,112270.0,112260.0,0.1896]
[1755865173438,20.27024912,112270.0,112260.0,0.36775784]
[1755865175053,20.27024912,112270.0,112260.0,0.43627784]
[1755865175983,20.09210715,112270.0,112260.0,0.52316259]
[1755865176185,20.09210715,112270.0,112260.0,0.86669516]
[1755865178054,20.09210715,112270.0,112260.0,0.70809516]
[1755865178235,20.09210715,112270.0,112260.0,0.86665516]
[1755865178833,20.09210715,112270.0,112260.0,0.52312259]
[1755865179939,20.09210715,112270.0,112260.0,0.86665516]
[1755865181040,19.91877447,112270.0,112260.0,0.86665516]
[1755865181355,19.91877447,112270.0,112260.0,0.52312259]
[1755865181537,19.91877447,112270.0,112260.0,0.86665516]
[1755865181668,19.91877447,112270.0,112260.0,0.52312259]
[1755865181866,19.91877447,112270.0,112260.0,0.52308259]
[1755865184938,19.91777447,112270.0,112260.0,0.51908259]
[1755865185156,19.91877447,112270.0,112260.0,0.52308259]
[1755865185585,19.91877447,112270.0,112260.0,0.52508259]
[1755865186568,19.91877447,112270.0,112260.0,0.79178259]
[1755865187510,20.44044901,112270.0,112260.0,0.45510475]
[1755865187652,20.44044901,112270.0,112260.0,0.79174259]
[1755865188066,20.09691644,112270.0,112260.0,0.79174259]
[1755865189118,19.91877447,112270.0,112260.0,0.79174259]
[1755865189329,20.09691644,112270.0,112260.0,0.79174259]
[1755865189529,19.91877447,112270.0,112260.0,0.79174259]
[1755865190262,20.09691644,112270.0,112260.0,0.79174259]
[1755865191241,19.91877447,112270.0,112260.0,0.79174259]
[1755865192511,19.91877447,112270.0,112260.0,0.52504259]
[1755865192906,20.09691644,112270.0,112260.0,0.52504259]
[1755865194177,19.91877447,112270.0,112260.0,0.52504259]
[1755865194464,20.09691644,112270.0,112260.0,0.52504259]
[1755865194671,19.91877447,112270.0,112260.0,0.52504259]
[1755865195063,20.09691644,112270.0,112260.0,0.52504259]
[1755865195865,19.91877447,112270.0,112260.0,0.52504259]
[1755865196111,20.09691644,112270.0,112260.0,0.52504259]
[1755865196582,19.91877447,112270.0,112260.0,0.52504259]
[1755865198221,19.91877447,112270.0,112260.0,0.86857516]
[1755865198547,19.91877447,112270.0,112260.0,0.79174259]
[1755865200350,20.09691644,112270.0,112260.0,0.79166259]
[1755865200558,19.91877447,112270.0,112260.0,0.79166259]
[1755865201335,20.09691644,112270.0,112260.0,0.79166259]
[1755865201956,19.91877447,112270.0,112260.0,0.79166259]
[1755865202277,20.09691644,112270.0,112260.0,0.63326259]
[1755865202483,19.91877447,112270.0,112260.0,0.79166259]
[1755865202656,20.09691644,112270.0,112260.0,0.63326259]
[1755865202825,20.09691644,112270.0,112260.0,0.79166259]
[1755865203850,19.91877447,112270.0,112260.0,0.79166259]
[1755865204055,20.09691644,112270.0,112260.0,0.79166259]
[1755865205084,19.91877447,112270.0,112260.0,0.79166259]
[1755865205311,20.09691644,112270.0,112260.0,0.79166259]
[1755865205729,19.91877447,112270.0,112260.0,0.79166259]
[1755865205898,20.09691644,112270.0,112260.0,0.79166259]
[1755865206339,19.91877447,112270.0,112260.0,0.79166259]
[1755865207721,20.09691644,112270.0,112260.0,0.79166259]
[1755865207919,20.09691644,112270.0,112260.0,0.79162259]
[1755865208336,19.91877447,112270.0,112260.0,0.79162259]
[1755865209779,19.91877447,112270.0,112260.0,1.13515516]
[1755865210149,19.91877447,112270.0,112260.0,0.79162259]
[1755865210309,19.91877447,112270.0,112260.0,1.13515516]
[1755865212318,19.91877447,112270.0,112260.0,0.79162259]
[1755865212573,19.91877447,112270.0,112260.0,1.13515516]
[1755865212785,19.91877447,112270.0,112260.0,0.63326259]
[1755865212996,19.91877447,112270.0,112260.0,0.79158259]
[1755865213620,19.91877447,112270.0,112260.0,0.79162259]
[1755865214070,20.09691644,112270.0,112260.0,0.79162259]
[1755865214275,20.09691644,112270.0,112260.0,0.79158259]
[1755865216336,20.09691644,112270.0,112260.0,0.63330259]
[1755865216507,20.09691644,112270.0,112260.0,0.79158259]
[1755865216717,19.91877447,112270.0,112260.0,0.79158259]
[1755865217491,20.09691644,112270.0,112260.0,0.79158259]
[1755865217698,20.09691644,112270.0,112260.0,0.63330259]
[1755865217960,20.09691644,112270.0,112260.0,0.79158259]
[1755865218879,19.91877447,112270.0,112260.0,0.79158259]
[1755865219546,20.09691644,112270.0,112260.0,0.79158259]
[1755865219679,20.09691644,112270.0,112260.0,0.81836459]
[1755865221344,19.91877447,112270.0,112260.0,0.81836459]
[1755865222479,20.09691644,112270.0,112260.0,0.81836459]
[1755865222676,20.09691644,112270.0,112260.0,1.16183339]
[1755865225256,20.09691644,112270.0,112260.0,0.81836459]
[1755865225459,20.09691644,112270.0,112260.0,1.16183339]
[1755865225684,20.44038524,112270.0,112260.0,0.64012675]
[1755865225888,20.09691644,112270.0,112260.0,0.61334475]
[1755865226966,20.09691644,112270.0,112260.0,0.79150259]
[1755865227569,20.44038524,112270.0,112260.0,0.61334475]
[1755865228077,20.44038524,112270.0,112260.0,0.34664475]
[1755865228286,20.44038524,112270.0,112260.0,0.25976]
[1755865228818,20.09691644,112270.0,112260.0,0.25976]
[1755865228965,20.44038524,112270.0,112260.0,0.25976]
[1755865229804,20.09691644,112270.0,112260.0,0.25976]
[1755865230038,20.44038524,112270.0,112260.0,0.25976]
[1755865230467,20.44038524,112270.0,112260.0,0.43791784]
[1755865230666,20.44038524,112270.0,112260.0,0.10156]
[1755865230876,20.44038524,112270.0,112260.0,0.43787784]
[1755865231281,20.09691644,112270.0,112260.0,0.25972]
[1755865231479,20.44038524,112270.0,112260.0,0.43787784]
[1755865231691,20.44038524,112270.0,112260.0,0.25972]
[1755865234027,20.44038524,112270.0,112260.0,0.43787784]
[1755865234625,20.09691644,112270.0,112260.0,0.43787784]
[1755865236833,20.09691644,112270.0,112260.0,0.86823139]
[1755865237662,20.09691644,112270.0,112260.0,0.71007139]
[1755865237867,20.09691644,112270.0,112260.0,0.86819139]
[1755865238095,19.91877447,112270.0,112260.0,0.86819139]
[1755865238518,20.09691644,112270.0,112260.0,0.86819139]
[1755865238987,19.91877447,112270.0,112260.0,0.52472259]
[1755865239191,19.91877447,112270.0,112260.0,0.86819139]
[1755865239921,19.91877447,112270.0,112260.0,1.21166019]
[1755865240168,19.91877447,112270.0,112260.0,1.23844219]
[1755865240402,19.91877447,112270.0,112260.0,1.57844219]
[1755865240795,19.91877447,112270.0,112260.0,1.57840219]
[1755865241450,19.91877447,112270.0,112260.0,1.42032219]
[1755865241655,19.91877447,112270.0,112260.0,0.89146459]
[1755865241865,19.91877447,112270.0,112260.0,1.57840219]
[1755865242283,20.09691644,112270.0,112260.0,1.42032219]
[1755865242431,20.09691644,112270.0,112260.0,1.23489339]
[1755865242432,19.91877447,112270.0,112260.0,1.23489339]
[1755865243051,19.91877447,112270.0,112260.0,1.57836219]
[1755865243251,19.91877447,112270.0,112260.0,0.89142459]
[1755865243454,19.91877447,112270.0,112260.0,1.57836219]
[1755865243754,19.91877447,112270.0,112260.0,0.73338459]
[1755865243979,19.91877447,112270.0,112260.0,1.57836219]
[1755865244417,20.09691644,112270.0,112260.0,1.07685339]
[1755865244543,20.09691644,112270.0,112260.0,1.23489339]
[1755865244943,20.09691644,112270.0,112260.0,0.73338459]
[1755865245208,20.09691644,112270.0,112260.0,0.87369555]
[1755865245410,20.09691644,112270.0,112260.0,1.05669555]
[1755865245616,20.09691644,112270.0,112260.0,1.03169555]
[1755865245822,20.09691644,112270.0,112260.0,1.05669555]
[1755865246328,20.09691644,112270.0,112260.0,0.71669555]
[1755865247306,20.09691644,112270.0,112260.0,0.37322675]
[1755865247508,20.09691644,112270.0,112260.0,0.71669555]
[1755865247834,20.09691644,112270.0,112260.0,0.14670675]
[1755865248031,20.44038524,112270.0,112260.0,0.18844475]
[1755865248258,20.44038524,112270.0,112260.0,0.34644475]
[1755865248666,20.09691644,112270.0,112260.0,0.68991355]
[1755865248875,20.09691644,112270.0,112260.0,0.34644475]
[1755865249865,20.09691644,112270.0,112260.0,0.18844475]
[1755865250080,20.09691644,112270.0,112260.0,0.53191355]
[1755865250246,20.09691644,112270.0,112260.0,0.53016598]
[1755865250796,20.09691644,112270.0,112260.0,0.68812598]
[1755865251203,20.09691644,112270.0,112260.0,0.86628382]
[1755865252429,20.09691644,112270.0,112260.0,0.52281502]
[1755865252666,19.91877447,112270.0,112260.0,0.86628382]
[1755865253462,19.91877447,112270.0,112260.0,1.20975262]
[1755865254948,19.91877447,112270.0,112260.0,0.86628382]
[1755865255149,19.91877447,112270.0,112260.0,0.52281502]
[1755865255357,19.91877447,112270.0,112260.0,0.86628382]
[1755865256406,19.91877447,112270.0,112260.0,0.52281502]
[1755865256606,19.91877447,112270.0,112260.0,1.20975262]
[1755865258201,19.91877447,112270.0,112260.0,0.86628382]
[1755865258408,19.91877447,112270.0,112260.0,0.52281502]
[1755865258537,19.91877447,112270.0,112260.0,0.89306682]
[1755865259784,20.09691644,112270.0,112260.0,0.89298682]
[1755865260446,20.09691644,112270.0,112260.0,0.21348018]